[Event "SixDays Budapest GM-C 10-2024"]
[Site "Budapest"]
[Date "2024.10.01"]
[Round "2.1"]
[White "Pap, Gyula"]
[Black "Srihari L R"]
[Result "1/2-1/2"]
[ECO "B13"]
[WhiteElo "2476"]
[BlackElo "2503"]
[Annotator "RC"]
[PlyCount "21"]
[EventDate "2024.09.24"]
[EventType "tourn"]
[EventCountry "HUN"]
[SourceTitle "playchess.com"]
[Source "ChessBase"]
[SourceQuality "1"]
[TimeControl "5400+30"]

1. e4 {[%emt 0:00:06]} c6 {[%emt 0:10:30]} 2. d4 {[%emt 0:04:10]} d5 {[%emt 0:01:35]} 3. exd5 {[%emt 0:01:43]} cxd5 {[%emt 0:00:03]} 4. Bd3 {[%emt 0:00:22]} Nc6 {[%emt 0:00:02]} 5. c3 {[%emt 0:00:10]} Nf6 {[%emt 0:00:11]} 6. h3 {[%emt 0:00:35]} g6 {[%emt 0:03:02]} 7. Nf3 {[%emt 0:01:05]} Bf5 {[%emt 0:00:07]} 8. Be2 {[%emt 0:01:53]} Bg7 {[%emt 0:02:21]} 9. Bf4 {[%emt 0:03:41]} O-O {[%emt 0:04:49]} 10. O-O {[%emt 0:00:42]} Ne4 {[%emt 0:01:30]} 11. Nbd2 {[%emt 0:01:01]} 1/2-1/2

[Event "SixDays Budapest GM-C 10-2024"]
[Site "Budapest"]
[Date "2024.10.01"]
[Round "2.2"]
[White "Borgaonkar Akshay"]
[Black "Laddha, Shubh Jayesh"]
[Result "1/2-1/2"]
[ECO "C70"]
[WhiteElo "2415"]
[BlackElo "2308"]
[Annotator "RC"]
[PlyCount "92"]
[EventDate "2024.09.24"]
[EventType "tourn"]
[EventCountry "HUN"]
[SourceTitle "playchess.com"]
[Source "ChessBase"]
[SourceQuality "1"]
[TimeControl "5400+30"]

1. e4 {[%emt 0:03:15]} e5 {[%emt 0:00:05]} 2. Nf3 {[%emt 0:00:26]} Nc6 {[%emt 0:00:04]} 3. Bb5 {[%emt 0:00:03]} a6 {[%emt 0:00:04]} 4. Ba4 {[%emt 0:00:04]} Bc5 {[%emt 0:00:04]} 5. O-O {[%emt 0:01:39]} Nge7 {[%emt 0:00:08]} 6. c3 {[%emt 0:00:07]} Ng6 {[%emt 0:00:14]} 7. d4 {[%emt 0:00:26]} Ba7 {[%emt 0:00:11]} 8. Bg5 {[%emt 0:00:25]} f6 {[%emt 0:00:14]} 9. Be3 {[%emt 0:00:04]} O-O {[%emt 0:00:26]} 10. Nbd2 {[%emt 0:02:48]} d6 {[%emt 0:00:09]} 11. Re1 {[%emt 0:01:22]} Kh8 {[%emt 0:00:10]} 12. h3 {[%emt 0:04:24]} Bd7 {[%emt 0:00:22]} 13. Nf1 {[%emt 0:07:10]} exd4 {[%emt 0:00:45]} 14. cxd4 {[%emt 0:02:19]} d5 {[%emt 0:01:51]} 15. exd5 {[%emt 0:12:50]} Nb4 {[%emt 0:00:20]} 16. Bb3 {[%emt 0:02:19]} Bb5 {[%emt 0:00:49]} 17. a4 {[%emt 0:02:00]} Be8 {[%emt 0:00:39]} 18. Ng3 {[%emt 0:04:11]} Nxd5 {[%emt 0:09:24]} 19. Bd2 {[%emt 0:04:05]} Bc6 {[%emt 0:08:59]} 20. h4 {[%emt 0:09:54]} Re8 {[%emt 0:13:46]} 21. h5 {[%emt 0:00:51]} Ngf4 {[%emt 0:02:58]} 22. h6 {[%emt 0:04:50]} g6 {[%emt 0:08:34]} 23. Rxe8+ {[%emt 0:03:10]} Qxe8 {[%emt 0:02:03]} 24. Bxf4 {[%emt 0:00:22]} Nxf4 {[%emt 0:00:06]} 25. Qd2 {[%emt 0:00:05]} Nd5 {[%emt 0:13:35]} 26. Re1 {[%emt 0:00:56]} Qf8 {[%emt 0:04:26]} 27. Ne4 {[%emt 0:05:01]} Re8 {[%emt 0:13:35]} 28. Neg5 {[%emt 0:09:43]} Rxe1+ {[%emt 0:13:12]} 29. Qxe1 {[%emt 0:00:06]} Qe7 {[%emt 0:01:23]} 30. Qxe7 {[%emt 0:04:54]} Nxe7 {[%emt 0:00:03]} 31. Nf7+ {[%emt 0:00:04]} Kg8 {[%emt 0:00:02]} 32. Nd8+ {[%emt 0:00:16]} Kf8 {[%emt 0:02:19]} 33. Ne6+ {[%emt 0:00:28]} Ke8 {[%emt 0:00:57]} 34. d5 {[%emt 0:01:06]} Bd7 {[%emt 0:00:36]} 35. Nxc7+ {[%emt 0:00:06]} Kd8 {[%emt 0:00:57]} 36. Ne6+ {[%emt 0:08:14]} Bxe6 {[%emt 0:00:25]} 37. dxe6 {[%emt 0:00:02]} Nf5 {[%emt 0:00:26]} 38. Bd5 {[%emt 0:00:38]} Nxh6 {[%emt 0:01:16]} 39. Bxb7 {[%emt 0:00:06]} a5 {[%emt 0:00:42]} 40. Ne1 {[%emt 0:01:16]} Ke7 {[%emt 0:00:42]} 41. Bd5 {[%emt 0:01:50]} Ng4 {[%emt 0:01:42]} 42. Nd3 {[%emt 0:00:05]} Ne5 {[%emt 0:00:14]} 43. Nxe5 {[%emt 0:00:59]} fxe5 {[%emt 0:00:03]} 44. g3 {[%emt 0:00:18]} Bc5 {[%emt 0:00:27]} 45. Kf1 {[%emt 0:00:19]} e4 {[%emt 0:00:43]} 46. Bxe4 {[%emt 0:00:10]} Kxe6 {[%emt 0:00:03]} 1/2-1/2

[Event "SixDays Budapest GM-C 10-2024"]
[Site "Budapest"]
[Date "2024.10.01"]
[Round "2.3"]
[White "Mohammad Fahad, Rahman"]
[Black "Susilodinata, Andrean"]
[Result "1-0"]
[ECO "B15"]
[WhiteElo "2419"]
[BlackElo "2393"]
[Annotator "TA"]
[PlyCount "85"]
[EventDate "2024.09.24"]
[EventType "tourn"]
[EventCountry "HUN"]
[SourceTitle "playchess.com"]
[Source "ChessBase"]
[SourceQuality "1"]
[TimeControl "5400+30"]

{[%evp 9,85,31,26,24,37,42,40,23,37,22,27,0,2,0,9,0,0,0,7,0,5,0,17,12,8,7,2,5,8,7,41,3,223,247,235,218,300,289,293,287,508,499,473,264,244,239,258,297,290,276,312,317,301,268,268,293,299,297,289,264,579,576,697,662,1372,1366,1754,1581,1699,1609,29995,29992,29992,29993,29993,29993,29993,29994]} 1. e4 {[%emt 0:09:58]} c6 {[%emt 0:00:05]} 2. d4 {[%emt 0:00:19]} d5 {[%emt 0:00:02]} 3. Nd2 {[%emt 0:00:12]} dxe4 {[%emt 0:00:08]} 4. Nxe4 {[%emt 0:00:08]} Nf6 {[%emt 0:00:03]} 5. Nxf6+ {[%emt 0:00:37]} exf6 {[%emt 0:00:02]} 6. c3 {[%emt 0:00:29]} a5 {[%emt 0:00:44]} 7. Bd3 {[%emt 0:00:59]} Na6 {[%emt 0:00:06]} 8. Ne2 {[%emt 0:01:03] White is slightly better.} g6 {[%emt 0:00:35]} 9. O-O {[%emt 0:00:30]} Bg7 {[%emt 0:00:05]} 10. Bf4 {[%emt 0:03:33]} O-O {[%emt 0:00:28]} 11. Qd2 {[%emt 0:00:11]} Re8 {[%emt 0:00:21]} 12. h3 {[%emt 0:06:08]} Nc7 {[%emt 0:03:13]} 13. Rad1 {[%emt 0:00:23]} Be6 {[%emt 0:02:09]} 14. c4 {[%emt 0:04:33]} f5 {[%emt 0:00:39]} 15. b3 {[%emt 0:00:27]} Qd7 {[%emt 0:16:04]} 16. a4 {[%emt 0:06:11]} b6 {[%emt 0:19:43]} 17. Bb1 {[%emt 0:32:41]} Rad8 {[%emt 0:14:33]} 18. Bg5 {[%emt 0:01:03]} f6 {[%emt 0:05:35]} 19. Be3 {[%emt 0:00:06]} Qe7 {[%emt 0:10:27]} 20. Rfe1 {[%emt 0:05:13][%cal Od4d5] d5! is the strong threat.} Qa3 $2 {[%emt 0:06:42] [#] Black cannot hold the game after this.} (20... Bf8 $1 $11) 21. d5 $1 $18 {[%emt 0:01:54][%mdl 512]} Na8 {[%emt 0:10:27] [#]} 22. Nd4 $1 {[%emt 0:10:39]} Bd7 {[%emt 0:00:05]} 23. Bd3 {[%emt 0:01:40]} (23. dxc6 Bxc6 24. Bd3 Be4 25. Bxe4 fxe4) 23... cxd5 {[%emt 0:04:56]} 24. cxd5 {[%emt 0:00:01]} Nc7 $2 {[%emt 0:00:29]} (24... Bf8 {was necessary.}) 25. Bc4 {[%emt 0:00:58]} Kh8 {[%emt 0:00:32]} 26. Nc2 {[%emt 0:00:32]} (26. Bf4 $142 Rxe1+ 27. Rxe1 (27. Qxe1 Re8 $18)) 26... Qd6 {[%emt 0:00:31]} 27. Qd4 {[%emt 0:00:37]} b5 {[%emt 0:01:49]} 28. Bf4 {[%emt 0:00:42]} Re5 {[%emt 0:00:10]} 29. axb5 {[%emt 0:00:33]} Nxb5 {[%emt 0:00:05]} 30. Bxb5 {[%emt 0:03:30]} ({Don't play} 30. Bxe5 fxe5 31. Qd2 Ra8 32. Bxb5 Bxb5) 30... Bxb5 {[%emt 0:00:07]} 31. Ne3 {[%emt 0:00:07]} h5 {[%emt 0:03:24]} 32. Bxe5 {[%emt 0:01:23]} fxe5 {[%emt 0:00:02]} 33. Qa7 {[%emt 0:00:08]} e4 {[%emt 0:00:38]} 34. Nc4 {[%emt 0:00:41]} Qb4 {[%emt 0:00:48]} (34... Qa6 {is a better chance.} 35. Qe7 Re8) 35. Qb6 {[%emt 0:00:39]} Rd7 {[%emt 0:00:20]} 36. Qxg6 {[%emt 0:00:15]} Bc3 {[%emt 0:00:12]} 37. Re3 {[%emt 0:00:49][%cal Be1e3,Be3e4,Be4h4][%mdl 32]} h4 {[%emt 0:00:42]} 38. Qxf5 {[%emt 0:01:35]} Rg7 {[%emt 0:00:41]} 39. Rxe4 {[%emt 0:00:21] White threatens Qc8+ and mate.} Qxb3 {[%emt 0:00:05]} 40. Qf8+ {[%emt 0:00:29] White mates.} Kh7 {[%emt 0:00:02]} 41. Rxh4+ {[%emt 0:00:09]} Kg6 {[%emt 0:00:01]} 42. Qd6+ Bf6 {[%emt 0:00:21]} 43. Ne5+ {[%emt 0:01:51] Weighted Error Value: White=0.11 (very precise) /Black=0.74.  Loses game:     	---       	Black=1      Mistake:       	White=1     	Black=2      Inaccurate:     	White=1     	Black=3      OK:         	White=10    	Black=13     Best:        	---       	Black=1      Strong:       	White=1     	---        Brilliant:      	White=1     	---} ({Less strong is} 43. Nxa5 Qxd1+ 44. Kh2 Bd7 $16) 1-0

[Event "SixDays Budapest GM-C 10-2024"]
[Site "Budapest"]
[Date "2024.10.01"]
[Round "2.4"]
[White "Pacher, Milan"]
[Black "Mamatov, Melis"]
[Result "1-0"]
[ECO "C78"]
[WhiteElo "2343"]
[BlackElo "2362"]
[Annotator "RC"]
[PlyCount "109"]
[EventDate "2024.09.24"]
[EventType "tourn"]
[EventCountry "HUN"]
[SourceTitle "playchess.com"]
[Source "ChessBase"]
[SourceQuality "1"]
[TimeControl "5400+30"]

1. e4 {[%emt 0:01:57]} e5 {[%emt 0:00:35]} 2. Nf3 {[%emt 0:00:04]} Nc6 {[%emt 0:00:06]} 3. Bb5 {[%emt 0:00:03]} a6 {[%emt 0:00:07]} 4. Ba4 {[%emt 0:00:03]} Nf6 {[%emt 0:00:07]} 5. O-O {[%emt 0:00:06]} b5 {[%emt 0:00:04]} 6. Bb3 {[%emt 0:00:03]} Bc5 {[%emt 0:00:06]} 7. Nc3 {[%emt 0:00:33]} d6 {[%emt 0:01:53]} 8. Nd5 {[%emt 0:05:05]} h6 {[%emt 0:03:52]} 9. c3 {[%emt 0:07:38]} O-O {[%emt 0:02:52]} 10. d4 {[%emt 0:00:06]} Ba7 {[%emt 0:00:36]} 11. Nxf6+ {[%emt 0:04:40]} Qxf6 {[%emt 0:01:09]} 12. Bd5 {[%emt 0:00:06]} Bb7 {[%emt 0:08:38]} 13. Be3 {[%emt 0:00:06]} exd4 {[%emt 0:11:17]} 14. cxd4 {[%emt 0:03:17]} Na5 {[%emt 0:00:56]} 15. Bxb7 {[%emt 0:00:25]} Nxb7 {[%emt 0:00:05]} 16. Rc1 {[%emt 0:00:08]} c5 {[%emt 0:04:27]} 17. dxc5 {[%emt 0:02:17]} Bxc5 {[%emt 0:00:32]} 18. Qd5 {[%emt 0:01:01]} Rab8 {[%emt 0:13:03]} 19. b4 {[%emt 0:03:32]} Bxe3 {[%emt 0:02:32]} 20. fxe3 {[%emt 0:00:02]} Nd8 {[%emt 0:04:44]} 21. e5 {[%emt 0:01:35]} dxe5 {[%emt 0:07:46]} 22. Nxe5 {[%emt 0:00:15]} Qg5 {[%emt 0:00:07]} 23. e4 {[%emt 0:02:56]} Ne6 {[%emt 0:04:13]} 24. Nc6 {[%emt 0:10:32]} Rbe8 {[%emt 0:02:42]} 25. Qxg5 {[%emt 0:03:02]} hxg5 {[%emt 0:02:48]} 26. e5 {[%emt 0:04:25]} Nf4 {[%emt 0:03:29]} 27. Rcd1 {[%emt 0:01:20]} Re6 {[%emt 0:02:49]} 28. Rd6 {[%emt 0:08:25]} Rfe8 {[%emt 0:00:11]} 29. Rfd1 {[%emt 0:06:56]} Ne2+ {[%emt 0:02:33]} 30. Kf1 {[%emt 0:02:33]} Nc3 {[%emt 0:00:10]} 31. Rxe6 {[%emt 0:00:37]} Rxe6 {[%emt 0:00:12]} 32. Rd8+ {[%emt 0:00:35]} Kh7 {[%emt 0:00:01]} 33. Rd6 {[%emt 0:00:15]} Nxa2 {[%emt 0:01:04]} 34. Ke2 {[%emt 0:04:20]} Nc3+ {[%emt 0:03:42]} 35. Kd3 {[%emt 0:00:50]} Nd5 {[%emt 0:02:42]} 36. Kd4 {[%emt 0:06:51]} Nf4 {[%emt 0:05:27]} 37. g3 {[%emt 0:01:51]} Ne2+ {[%emt 0:01:42]} 38. Ke3 {[%emt 0:05:39]} Nc3 {[%emt 0:00:29]} 39. Kd3 {[%emt 0:00:27]} Na2 {[%emt 0:05:10]} 40. Rxe6 {[%emt 0:02:35]} fxe6 {[%emt 0:00:01]} 41. g4 {[%emt 0:00:21]} Kg6 {[%emt 0:02:10]} 42. Kc2 {[%emt 0:00:06]} Kf7 {[%emt 0:00:10]} 43. Kb2 {[%emt 0:00:04]} Nxb4 {[%emt 0:00:06]} 44. Nxb4 {[%emt 0:00:03]} a5 {[%emt 0:00:48]} 45. Nc6 {[%emt 0:00:05]} a4 {[%emt 0:00:09]} 46. Ka3 {[%emt 0:00:30]} Ke8 {[%emt 0:00:05]} 47. Kb4 {[%emt 0:00:05]} Kd7 {[%emt 0:00:15]} 48. Nd4 {[%emt 0:01:02]} Kc7 {[%emt 0:00:29]} 49. Nxe6+ {[%emt 0:01:12]} Kc6 {[%emt 0:00:02]} 50. Nxg5 {[%emt 0:00:06]} Kd5 {[%emt 0:00:07]} 51. Nf3 {[%emt 0:00:04]} Ke6 {[%emt 0:00:40]} 52. h4 {[%emt 0:00:05]} Kd5 {[%emt 0:00:28]} 53. h5 {[%emt 0:00:05]} Ke6 {[%emt 0:00:03]} 54. g5 {[%emt 0:00:10]} Kf5 {[%emt 0:00:16]} 55. h6 {[%emt 0:00:04]} 1-0

[Event "SixDays Budapest GM-C 10-2024"]
[Site "Budapest"]
[Date "2024.10.01"]
[Round "2.5"]
[White "Kotronias, Vasilios"]
[Black "Chen, Yining"]
[Result "1-0"]
[ECO "B12"]
[WhiteElo "2458"]
[BlackElo "2252"]
[Annotator "TA"]
[PlyCount "73"]
[EventDate "2024.09.24"]
[EventType "tourn"]
[EventCountry "HUN"]
[SourceTitle "playchess.com"]
[Source "ChessBase"]
[SourceQuality "1"]
[TimeControl "5400+30"]

{[%evp 10,73,21,13,46,8,33,26,56,47,41,45,47,52,69,69,86,82,87,81,92,94,94,84,112,95,104,98,106,105,119,109,107,98,125,112,174,158,239,228,237,208,259,253,254,257,306,302,310,311,752,748,750,388,409,414,401,386,674,664,1328,1290,1084,1064,6275,6183]} 1. e4 {[%emt 0:00:37]} c6 {[%emt 0:00:18]} 2. d4 {[%emt 0:02:00]} d5 {[%emt 0:00:09]} 3. e5 {[%emt 0:00:06]} Bf5 {[%emt 0:00:13]} 4. Nd2 {[%emt 0:00:07]} e6 {[%emt 0:00:08]} 5. Nb3 {[%emt 0:00:04]} Nd7 {[%emt 0:00:04]} 6. Nf3 {[%emt 0:00:15]} Qc7 {[%emt 0:00:13]} 7. Nh4 {[%emt 0:06:08] Black should prevent Nxf5.} Bg6 {[%emt 0:04:34]} 8. c3 {[%emt 0:09:13]} c5 {[%emt 0:03:28][%cal Bc6c5,Bc5c4][%mdl 32] White has an edge.} 9. Bb5 {[%emt 0:04:24][%cal Bf1b5,Bb5a4,Ba4c2][%mdl 32]} c4 {[%emt 0:02:48]} 10. Nxg6 {[%emt 0:00:07]} hxg6 {[%emt 0:00:05]} 11. Nd2 {[%emt 0:00:05]} a6 {[%emt 0:03:12]} 12. Ba4 {[%emt 0:00:04]} b5 {[%emt 0:00:21]} 13. Bc2 {[%emt 0:00:02]} Ne7 {[%emt 0:04:17]} 14. Nf3 {[%emt 0:00:23]} Nf5 {[%emt 0:08:53]} 15. h4 {[%emt 0:03:40]} Be7 {[%emt 0:10:57]} 16. g3 {[%emt 0:00:02]} O-O-O {[%emt 0:02:10][%cal Be8c8,Bc8b7,Bb7a7][%mdl 32]} 17. Bf4 {[%emt 0:02:15]} b4 {[%emt 0:03:38]} 18. cxb4 {[%emt 0:06:28]} Bxb4+ {[%emt 0:00:18]} 19. Kf1 {[%emt 0:00:04]} Nb6 {[%emt 0:03:55]} 20. Kg2 {[%emt 0:00:09]} Kb7 {[%emt 0:00:57]} 21. Rb1 {[%emt 0:09:39][%cal Oh4h5]} Ka7 {[%emt 0:02:26]} 22. Qe2 {[%emt 0:03:30]} Rb8 {[%emt 0:06:57]} (22... Rc8 $16 23. g4 Nh6) 23. h5 $1 $18 {[%emt 0:05:46]} gxh5 {[%emt 0:07:08]} (23... Rxh5 $2 24. Rxh5 gxh5 25. Bxf5 $18) (23... Rhf8 $16 24. hxg6 fxg6) 24. Bxf5 {[%emt 0:00:05]} exf5 {[%emt 0:00:04][%cal Be6f5,Bf5f4][%mdl 32]} 25. e6 {[%emt 0:00:03]} Bd6 {[%emt 0:00:07]} 26. Bxd6 {[%emt 0:00:08]} Qxd6 {[%emt 0:00:05]} 27. exf7 {[%emt 0:00:04] Black must now prevent Rbe1.} Rhf8 {[%emt 0:12:43] [#]} 28. Ng5 {[%emt 0:01:29]} (28. Rxh5 Rxf7 29. Ne5 Rf6 $16) 28... f4 {[%emt 0:10:56]} 29. Rbe1 {[%emt 0:01:09] Threatens to win with Qe7+.} (29. Qxh5 $6 fxg3 30. fxg3 Nd7 $18) (29. Rxh5 fxg3 30. fxg3 Qg6 $16) 29... Qf6 {[%emt 0:02:46]} (29... Rb7 30. Qe5 (30. Qxh5 fxg3 31. fxg3 Nd7 $18) 30... Qf6 31. gxf4 (31. Rxh5 Nd7 $18) 31... h4) 30. Qe7+ {[%emt 0:08:29]} Ka8 {[%emt 0:00:18]} 31. Rh4 {[%emt 0:04:10]} fxg3 {[%emt 0:03:19]} 32. Kxg3 {[%emt 0:00:24]} Nc8 {[%emt 0:02:57] [#]} 33. Qe5 {[%emt 0:00:16] Active counter play!} (33. Qxf8 Qxg5+ 34. Kh3 Qf5+ 35. Kg2 Qg5+ 36. Kf1 (36. Kh3 Qf5+ 37. Kg3 Qg6+ 38. Kh2 Qf6 $11) 36... Qxh4 $11) 33... Nd6 $2 {[%emt 0:01:13]} (33... Rxf7 34. Nxf7 (34. Rxh5 Qxf2+ 35. Kg4 Qg2+ 36. Qg3 Rf2 $17) (34. Qxd5+ Rfb7 $18) 34... Qxf7 35. Rxh5 (35. Qxh5 Qd7 $18) 35... Nb6) 34. Qxd5+ {[%emt 0:00:29] White is clearly winning.} (34. Rxh5 Rxb2 35. Qxd5+ Kb8 $11) 34... Rb7 {[%emt 0:02:08]} 35. Rf4 {[%emt 0:02:10]} h4+ {[%emt 0:01:16]} 36. Kg4 {[%emt 0:00:23]} (36. Kxh4 {is a self mate.} Qxf4+ 37. Kh3 Rh8+ (37... Qxf2 $2 38. Re8+ Nxe8 39. Qd8+ Ka7 40. fxe8=R $19) (37... Qxf2 $2 38. Nf3 $19)) 36... Qg6 {[%emt 0:00:43]} 37. Re6 {[%emt 0:00:06] Weighted Error Value: White=0.30/Black=0.35.  Mistake:       	---       	Black=4      Inaccurate:     	White=1     	Black=3      OK:         	White=18    	Black=5      Best:        	White=1     	---} 1-0

[Event "SixDays Budapest GM-C 10-2024"]
[Site "Budapest"]
[Date "2024.10.01"]
[Round "3.1"]
[White "Chen, Yining"]
[Black "Pap, Gyula"]
[Result "1/2-1/2"]
[ECO "A41"]
[WhiteElo "2252"]
[BlackElo "2476"]
[Annotator "TA"]
[PlyCount "22"]
[EventDate "2024.09.24"]
[EventType "tourn"]
[EventCountry "HUN"]
[SourceTitle "playchess.com"]
[Source "ChessBase"]
[SourceQuality "1"]
[TimeControl "5400+30"]

{[%evp 12,22,42,28,37,21,19,0,27,0,21,0,26]} 1. d4 {[%emt 0:00:04]} d6 {[%emt 0:00:30]} 2. Nf3 {[%emt 0:00:17]} g6 {[%emt 0:00:19]} 3. c4 {[%emt 0:00:14]} Bg7 {[%emt 0:00:15]} 4. Nc3 {[%emt 0:00:13]} Bg4 {[%emt 0:01:50]} 5. e3 {[%emt 0:05:23]} Nf6 {[%emt 0:02:50]} 6. Be2 {[%emt 0:01:00]} O-O {[%emt 0:02:13]} 7. h3 {[%emt 0:01:57]} Bf5 {[%emt 0:06:22]} 8. Nh4 {[%emt 0:13:13] Threatening Nxf5.} Bd7 {[%emt 0:05:14]} 9. Nf3 {[%emt 0:03:37]} Bf5 {[%emt 0:04:45]} 10. Nh4 {[%emt 0:05:44] next Nxf5 is good for White.} Bd7 {[%emt 0:03:36]} 11. Nf3 {[%emt 0:00:58]} Bf5 {[%emt 0:08:05] An uneventful encounter.   Weighted Error Value: White=0.17 (very precise) /Black=0.00 (flawless) .  OK:         	---       	Black=4} 1/2-1/2

[Event "SixDays Budapest GM-C 10-2024"]
[Site "Budapest"]
[Date "2024.10.01"]
[Round "3.2"]
[White "Mamatov, Melis"]
[Black "Kotronias, Vasilios"]
[Result "1/2-1/2"]
[ECO "B85"]
[WhiteElo "2362"]
[BlackElo "2458"]
[Annotator "TA"]
[PlyCount "110"]
[EventDate "2024.09.24"]
[EventType "tourn"]
[EventCountry "HUN"]
[SourceTitle "playchess.com"]
[Source "ChessBase"]
[SourceQuality "1"]
[TimeControl "5400+30"]

{[%evp 22,110,15,18,20,15,25,19,9,19,20,21,21,0,0,0,0,0,0,4,8,7,4,0,0,0,16,0,0,0,0,0,18,2,4,3,10,21,16,11,16,9,37,0,16,8,14,0,26,27,33,33,66,72,72,68,125,122,378,137,98,50,50,50,50,50,50,50,50,50,50,50,50,50,50,50,50,35,50,42,50,50,8,0,0,0,32,0,0,0,0]} 1. e4 {[%emt 0:00:03]} c5 {[%emt 0:00:14]} 2. Nf3 {[%emt 0:00:08]} e6 {[%emt 0:00:03]} 3. d4 {[%emt 0:00:06]} cxd4 {[%emt 0:00:03]} 4. Nxd4 {[%emt 0:00:06]} Nc6 {[%emt 0:00:03]} 5. Nc3 {[%emt 0:00:08]} Qc7 {[%emt 0:00:04]} 6. Be2 {[%emt 0:00:13]} a6 {[%emt 0:00:15]} 7. Be3 {[%emt 0:00:24]} Nf6 {[%emt 0:00:06]} 8. O-O {[%emt 0:00:05]} Be7 {[%emt 0:00:04]} 9. f4 {[%emt 0:00:11]} d6 {[%emt 0:00:04]} 10. Qe1 {[%emt 0:00:54]} O-O {[%emt 0:00:06]} 11. Kh1 {[%emt 0:00:34]} Bd7 {[%emt 0:00:09]} 12. Qg3 {[%emt 0:00:16]} d5 {[%emt 0:01:15]} 13. e5 {[%emt 0:17:12] [#] And now Nxc6 would win.} Ne4 {[%emt 0:00:07]} 14. Nxe4 {[%emt 0:00:40]} dxe4 {[%emt 0:00:58]} 15. c3 {[%emt 0:02:35]} Nxd4 {[%emt 0:08:27]} 16. Bxd4 {[%emt 0:01:44]} Bc5 {[%emt 0:02:35]} 17. Rad1 {[%emt 0:13:34] Bxc5 would now be deadly.} Bxd4 {[%emt 0:09:07]} 18. Rxd4 {[%emt 0:00:20]} Bc6 {[%emt 0:00:10]} 19. Rfd1 {[%emt 0:05:22]} Qb6 {[%emt 0:05:59]} 20. b4 {[%emt 0:05:37]} Qc7 {[%emt 0:13:44]} 21. c4 {[%emt 0:02:55]} b5 {[%emt 0:14:56]} 22. a3 {[%emt 0:03:21]} bxc4 {[%emt 0:00:47]} 23. Bxc4 {[%emt 0:00:11]} Ba4 {[%emt 0:05:57]} 24. Bb3 {[%emt 0:04:54]} Bxb3 {[%emt 0:03:08]} 25. Qxb3 {[%emt 0:00:03][%cal Ob3b1]} Rad8 $1 {[%emt 0:02:11]} 26. Rd6 {[%emt 0:05:02]} h5 {[%emt 0:04:14]} 27. h3 {[%emt 0:01:45]} (27. Rxa6 $2 Qc4 28. Qb1 Rxd1+ (28... Qxa6 $2 29. Re1 $19) 29. Qxd1 Qxa6 $19) 27... Rxd6 {[%emt 0:00:17]} 28. exd6 $11 {[%emt 0:00:09][%mdl 4096] Endgame. KQR-KQR} Qb6 {[%emt 0:00:04]} 29. Qc2 {[%emt 0:01:37][%cal Oc2c5] Black must now prevent Qc5!} (29. Qc4 $5 Rd8 $8 30. Qc5 $14 (30. Qxe4 Rxd6 31. Rxd6 Qxd6 $11)) 29... Rd8 {[%emt 0:01:43]} 30. Qc5 {[%emt 0:07:50]} Qb5 {[%emt 0:00:04]} 31. Kh2 {[%emt 0:05:32][%cal Od6d7]} h4 {[%emt 0:00:59]} 32. Rd2 {[%emt 0:07:15][%cal Od6d7]} (32. d7 {keeps more tension.} Qb8 33. Kg1 Qxf4 34. Qe7) 32... Rd7 {[%emt 0:03:09]} 33. Qe5 $36 {[%emt 0:03:13][%mdl 2048] White fights for an advantage.} Qc6 {[%emt 0:03:09]} 34. Rd4 {[%emt 0:01:34][%cal Oe5c5]} Qc3 {[%emt 0:05:21]} 35. Qxe4 {[%emt 0:01:49] Hoping for a4.} Qxa3 {[%emt 0:07:37]} 36. Rd3 {[%emt 0:00:22]} Qc1 {[%emt 0:00:13]} 37. f5 {[%emt 0:03:51]} Qh6 {[%emt 0:00:07] [#]} 38. Rd1 $1 {[%emt 0:03:04] Qc6 is the strong threat.} ({Much weaker is} 38. Rd4 Qf6 $11) 38... Qf6 {[%emt 0:02:19]} (38... Rd8 $14) 39. fxe6 {[%emt 0:00:21]} fxe6 {[%emt 0:01:02][%mdl 8192]} (39... Qxe6 $16 40. Qa8+ (40. Qxh4 Rxd6 41. Re1 Qc8 $11) 40... Kh7) 40. Qa8+ $2 {[%emt 0:00:24]} (40. Kg1 $18 {and the rest is easy.}) 40... Rd8 $16 {[%emt 0:02:10]} 41. Qxa6 {[%emt 0:00:01]} (41. Qa7 $16) 41... Qf4+ $14 {[%emt 0:00:07]} 42. Kh1 {[%emt 0:00:07]} Qxb4 {[%emt 0:00:05]} 43. d7 {[%emt 0:00:32]} Qe7 {[%emt 0:00:16]} 44. Qc8 {[%emt 0:00:17]} e5 {[%emt 0:00:11]} 45. Qc4+ {[%emt 0:00:51]} Kh8 {[%emt 0:00:18]} 46. Rd5 {[%emt 0:00:46][%cal Od5e5] White threatens Rxe5! and mate.} g6 {[%emt 0:04:10]} 47. Qc3 {[%emt 0:01:48]} Kh7 {[%emt 0:00:46]} 48. Qc6 {[%emt 0:00:43]} Kg7 {[%emt 0:01:29]} 49. Qc7 {[%emt 0:00:23]} Qf6 {[%emt 0:01:32]} 50. Rd1 {[%emt 0:00:39]} Qe7 {[%emt 0:00:42]} 51. Kg1 {[%emt 0:01:18]} e4 {[%emt 0:00:54]} 52. Rd5 {[%emt 0:00:32]} (52. Rd4 $5) 52... e3 $1 {[%emt 0:00:56]} 53. Re5 {[%emt 0:00:24]} Qf7 {[%emt 0:00:21]} 54. Rxe3 {[%emt 0:02:44] Active counter play!} (54. Re8 $5 Qf2+ (54... Rxd7 $2 {is the wrong capture.} 55. Qe5+ Qf6 56. Rg8+ Kxg8 57. Qxf6 $18) 55. Kh2 Qg3+ 56. Qxg3 hxg3+ 57. Kxg3 Rxd7 58. Rxe3 $14) 54... Rxd7 {[%emt 0:00:04] ( -> ...Rd1+)} 55. Qc3+ {[%emt 0:00:08]} Qf6 {[%emt 0:00:08] Weighted Error Value: White=0.13 (very precise) /Black=0.15 (very precise) .  Loses game:     	---       	Black=1      Missed win:     	White=1     	---        Mistake:       	White=1     	Black=1      Inaccurate:     	White=2     	Black=4      OK:         	White=16    	Black=19     Best:        	---       	Black=5      Strong:       	White=1     	Black=2} 1/2-1/2